[Event "December 5 Early 2023"]
[Site "https://www.chess.com"]
[Date "2023.12.05"]
[Round "5"]
[White "Taichman, Ori"]
[Black "Rasulov, Vugar"]
[Result "0-1"]
[Board "31"]
[TimeControl "180+1"]
[WhiteFideId "2804069"]
[BlackFideId "13402390"]
[WhiteElo "2643"]
[BlackElo "2910"]
[WhiteTeam "ISR"]
[BlackTeam "AZE"]
[WhiteClock "0:00:02"]
[BlackClock "0:01:54"]

1. e4 {[%clk 0:02:58]}  d5 {[%clk 0:03:00]} 2. exd5 {[%clk 0:02:58]}  Nf6 {[%clk 0:03:01]} 3. Bb5+ {[%clk 0:02:57]}  Nbd7 {[%clk 0:03:00]} 4. c4 {[%clk 0:02:57]}  a6 {[%clk 0:03:00]} 5. Bxd7+ {[%clk 0:02:57]}  Bxd7 {[%clk 0:02:58]} 6. d4 {[%clk 0:02:57]}  e6 {[%clk 0:02:56]} 7. dxe6 {[%clk 0:02:55]}  Bxe6 {[%clk 0:02:57]} 8. d5 {[%clk 0:02:54]}  Bf5 {[%clk 0:02:58]} 9. Nf3 {[%clk 0:02:50]}  Bb4+ {[%clk 0:02:56]} 10. Bd2 {[%clk 0:02:50]}  Qe7+ {[%clk 0:02:54]} 11. Qe2 {[%clk 0:02:48]}  Bd3 {[%clk 0:02:48]} 12. Qxe7+ {[%clk 0:02:46]}  Bxe7 {[%clk 0:02:49]} 13. Ne5 {[%clk 0:02:43]}  Bf5 {[%clk 0:02:45]} 14. O-O {[%clk 0:02:42]}  Bd6 {[%clk 0:02:45]} 15. Bc3 {[%clk 0:02:35]}  Ne4 {[%clk 0:02:43]} 16. Re1 {[%clk 0:02:20]}  O-O {[%clk 0:02:43]} 17. Bd4 {[%clk 0:02:13]}  Rfe8 {[%clk 0:02:41]} 18. Nf3 {[%clk 0:02:01]}  Bb4 {[%clk 0:02:28]} 19. Rc1 {[%clk 0:01:37]}  Bg4 {[%clk 0:02:21]} 20. a3 {[%clk 0:01:31]}  Bd6 {[%clk 0:02:18]} 21. Nbd2 {[%clk 0:01:26]}  Nxd2 {[%clk 0:02:18]} 22. Nxd2 {[%clk 0:01:26]}  Bf4 {[%clk 0:02:19]} 23. Bc3 {[%clk 0:00:49]}  Re2 {[%clk 0:02:18]} 24. Rd1 {[%clk 0:00:49]}  Rae8 {[%clk 0:02:17]} 25. Nf1 {[%clk 0:00:44]}  f6 {[%clk 0:02:09]} 26. Re1 {[%clk 0:00:29]}  Kf7 {[%clk 0:02:09]} 27. f3 {[%clk 0:00:20]}  Bf5 {[%clk 0:02:08]} 28. Ng3 {[%clk 0:00:19]}  Rxe1+ {[%clk 0:02:05]} 29. Rxe1 {[%clk 0:00:19]}  Rxe1+ {[%clk 0:02:06]} 30. Bxe1 {[%clk 0:00:19]}  Bd3 {[%clk 0:02:07]} 31. b3 {[%clk 0:00:18]}  Bc2 {[%clk 0:02:07]} 32. b4 {[%clk 0:00:18]}  Bb3 {[%clk 0:02:08]} 33. c5 {[%clk 0:00:18]}  Bxd5 {[%clk 0:02:08]} 34. Ne2 {[%clk 0:00:18]}  Bh6 {[%clk 0:02:06]} 35. Kf2 {[%clk 0:00:18]}  Bc4 {[%clk 0:02:04]} 36. Nd4 {[%clk 0:00:18]}  Bf4 {[%clk 0:02:03]} 37. g3 {[%clk 0:00:18]}  Be5 {[%clk 0:02:04]} 38. Ke3 {[%clk 0:00:18]}  c6 {[%clk 0:02:03]} 39. f4 {[%clk 0:00:14]}  Bc7 {[%clk 0:02:04]} 40. Bc3 {[%clk 0:00:14]}  g5 {[%clk 0:02:04]} 41. Nf3 {[%clk 0:00:12]}  gxf4+ {[%clk 0:02:04]} 42. gxf4 {[%clk 0:00:13]}  Kg6 {[%clk 0:02:04]} 43. Nh4+ {[%clk 0:00:13]}  Kf7 {[%clk 0:02:04]} 44. h3 {[%clk 0:00:11]}  Bf1 {[%clk 0:02:03]} 45. Nf5 {[%clk 0:00:10]}  Ke6 {[%clk 0:02:03]} 46. Nd4+ {[%clk 0:00:09]}  Kd5 {[%clk 0:02:03]} 47. h4 {[%clk 0:00:09]}  Kc4 {[%clk 0:02:03]} 48. Ne6 {[%clk 0:00:07]}  Kxc3 {[%clk 0:01:58]} 49. Nxc7 {[%clk 0:00:07]}  Kb3 {[%clk 0:01:59]} 50. Ne8 {[%clk 0:00:06]}  Kxa3 {[%clk 0:01:59]} 51. Nxf6 {[%clk 0:00:06]}  Kxb4 {[%clk 0:02:00]} 52. Nxh7 {[%clk 0:00:06]}  a5 {[%clk 0:02:01]} 53. f5 {[%clk 0:00:07]}  a4 {[%clk 0:02:01]} 54. f6 {[%clk 0:00:07]}  Bc4 {[%clk 0:02:01]} 55. Kd2 {[%clk 0:00:03]}  Kxc5 {[%clk 0:01:56]} 56. Ng5 {[%clk 0:00:03]}  a3 {[%clk 0:01:55]} 57. Kc3 {[%clk 0:00:03]}  b5 {[%clk 0:01:55]} 58. f7 {[%clk 0:00:03]}  b4+ {[%clk 0:01:56]} 59. Kc2 {[%clk 0:00:03]}  b3+ {[%clk 0:01:56]} 60. Kc3 {[%clk 0:00:04]}  Bxf7 {[%clk 0:01:55]} 61. Nxf7 {[%clk 0:00:04]}  b2 {[%clk 0:01:56]} 62. Kc2 {[%clk 0:00:05]}  Kd5 {[%clk 0:01:54]} 63. Nd8 {[%clk 0:00:03]}  c5 {[%clk 0:01:54]} 64. h5 {[%clk 0:00:03]}  c4 {[%clk 0:01:53]} 65. h6 {[%clk 0:00:04]}  c3 {[%clk 0:01:54]} 66. h7 {[%clk 0:00:04]}  a2 {[%clk 0:01:54]} 67. h8=Q {[%clk 0:00:04]}  b1=Q+ {[%clk 0:01:55]} 68. Kxc3 {[%clk 0:00:05]}  a1=Q+ {[%clk 0:01:55]} 69. Kd2 {[%clk 0:00:04]}  Qxh8 {[%clk 0:01:56]} 70. Ne6 {[%clk 0:00:02]}  Qh2+ {[%clk 0:01:54]} 0-1

[Event "December 5 Early 2023"]
[Site "https://www.chess.com"]
[Date "2023.12.05"]
[Round "5"]
[White "Zhigalko, Sergei"]
[Black "Bodnar, Nikolay"]
[Result "1-0"]
[Board "32"]
[TimeControl "180+1"]
[WhiteFideId "13502956"]
[BlackFideId "14106469"]
[WhiteElo "2909"]
[BlackElo "2630"]
[WhiteTeam "BLR"]
[BlackTeam "UKR"]
[WhiteClock "0:00:03"]
[BlackClock "0:00:01"]

1. e4 {[%clk 0:03:00]}  c5 {[%clk 0:02:59]} 2. Nf3 {[%clk 0:03:00]}  d6 {[%clk 0:02:57]} 3. d4 {[%clk 0:03:00]}  cxd4 {[%clk 0:02:57]} 4. Qxd4 {[%clk 0:03:01]}  Nf6 {[%clk 0:02:55]} 5. Nc3 {[%clk 0:03:01]}  Nc6 {[%clk 0:02:55]} 6. Bb5 {[%clk 0:02:59]}  Bd7 {[%clk 0:02:52]} 7. Bxc6 {[%clk 0:02:59]}  Bxc6 {[%clk 0:02:52]} 8. Bg5 {[%clk 0:02:59]}  e6 {[%clk 0:02:52]} 9. O-O-O {[%clk 0:02:59]}  Be7 {[%clk 0:02:52]} 10. Rhe1 {[%clk 0:02:59]}  Qc7 {[%clk 0:02:52]} 11. Kb1 {[%clk 0:02:58]}  Rb8 {[%clk 0:02:48]} 12. Qxa7 {[%clk 0:02:13]}  O-O {[%clk 0:02:46]} 13. a3 {[%clk 0:02:03]}  Ra8 {[%clk 0:02:43]} 14. Qd4 {[%clk 0:02:02]}  b5 {[%clk 0:02:44]} 15. Na2 {[%clk 0:01:50]}  Ra4 {[%clk 0:02:02]} 16. Nb4 {[%clk 0:01:48]}  d5 {[%clk 0:01:56]} 17. Bxf6 {[%clk 0:01:41]}  Bxf6 {[%clk 0:01:36]} 18. Qc5 {[%clk 0:01:37]}  Rxb4 {[%clk 0:01:05]} 19. Qxb4 {[%clk 0:01:14]}  dxe4 {[%clk 0:01:02]} 20. Rxe4 {[%clk 0:01:11]}  Bxe4 {[%clk 0:00:50]} 21. Qxe4 {[%clk 0:01:12]}  Rc8 {[%clk 0:00:44]} 22. Qd3 {[%clk 0:01:06]}  Qc5 {[%clk 0:00:40]} 23. Qd2 {[%clk 0:01:00]}  h6 {[%clk 0:00:36]} 24. Rc1 {[%clk 0:00:38]}  Rd8 {[%clk 0:00:30]} 25. Qe1 {[%clk 0:00:39]}  g5 {[%clk 0:00:25]} 26. h3 {[%clk 0:00:38]}  Kg7 {[%clk 0:00:24]} 27. c3 {[%clk 0:00:35]}  Qc4 {[%clk 0:00:23]} 28. Qf1 {[%clk 0:00:30]}  Qb3 {[%clk 0:00:22]} 29. Qe2 {[%clk 0:00:29]}  b4 {[%clk 0:00:19]} 30. cxb4 {[%clk 0:00:24]}  Ra8 {[%clk 0:00:13]} 31. Qc2 {[%clk 0:00:03]}  Rxa3 {[%clk 0:00:13]} 32. Qxb3 {[%clk 0:00:03]}  Rxb3 {[%clk 0:00:13]} 33. Rc2 {[%clk 0:00:04]}  Rxb4 {[%clk 0:00:13]} 34. Kc1 {[%clk 0:00:04]}  e5 {[%clk 0:00:12]} 35. Nd2 {[%clk 0:00:03]}  Kg6 {[%clk 0:00:12]} 36. g4 {[%clk 0:00:03]}  Rb6 {[%clk 0:00:10]} 37. Ne4 {[%clk 0:00:03]}  Be7 {[%clk 0:00:10]} 38. f3 {[%clk 0:00:02]}  Bb4 {[%clk 0:00:09]} 39. Rc4 {[%clk 0:00:02]}  f5 {[%clk 0:00:08]} 40. Ng3 {[%clk 0:00:02]}  fxg4 {[%clk 0:00:06]} 41. hxg4 {[%clk 0:00:02]}  Bf8 {[%clk 0:00:03]} 42. Ne4 {[%clk 0:00:02]}  Be7 {[%clk 0:00:03]} 43. Rc7 {[%clk 0:00:02]}  Bd6 {[%clk 0:00:03]} 44. Rd7 {[%clk 0:00:03]}  Bb4 {[%clk 0:00:03]} 45. Rd5 {[%clk 0:00:02]}  Rc6+ {[%clk 0:00:03]} 46. Kd1 {[%clk 0:00:02]}  Rb6 {[%clk 0:00:04]} 47. Rxe5 {[%clk 0:00:02]}  Bf8 {[%clk 0:00:03]} 48. Kc2 {[%clk 0:00:02]}  Bg7 {[%clk 0:00:04]} 49. Re7 {[%clk 0:00:02]}  Rxb2+ {[%clk 0:00:03]} 50. Kd3 {[%clk 0:00:02]}  Rb3+ {[%clk 0:00:04]} 51. Ke2 {[%clk 0:00:02]}  Rb2+ {[%clk 0:00:04]} 52. Kf1 {[%clk 0:00:03]}  Bd4 {[%clk 0:00:04]} 53. Re6+ {[%clk 0:00:03]}  Kh7 {[%clk 0:00:04]} 54. Rd6 {[%clk 0:00:03]}  Be3 {[%clk 0:00:03]} 55. Ke1 {[%clk 0:00:03]}  Bf4 {[%clk 0:00:03]} 56. Rd7+ {[%clk 0:00:02]}  Kg6 {[%clk 0:00:02]} 57. Ra7 {[%clk 0:00:02]}  Rb1+ {[%clk 0:00:02]} 58. Ke2 {[%clk 0:00:02]}  Rb2+ {[%clk 0:00:02]} 59. Kf1 {[%clk 0:00:02]}  Rb1+ {[%clk 0:00:03]} 60. Ke2 {[%clk 0:00:02]}  Rb2+ {[%clk 0:00:03]} 61. Kd1 {[%clk 0:00:02]}  Rb1+ {[%clk 0:00:03]} 62. Kc2 {[%clk 0:00:03]}  Rf1 {[%clk 0:00:03]} 63. Ra6+ {[%clk 0:00:03]}  Kg7 {[%clk 0:00:03]} 64. Ra7+ {[%clk 0:00:03]}  Kg6 {[%clk 0:00:04]} 65. Ra6+ {[%clk 0:00:03]}  Kg7 {[%clk 0:00:04]} 66. Ra3 {[%clk 0:00:03]}  Rg1 {[%clk 0:00:03]} 67. Rd3 {[%clk 0:00:02]}  Rg2+ {[%clk 0:00:03]} 68. Kb3 {[%clk 0:00:03]}  Rg1 {[%clk 0:00:03]} 69. Kc4 {[%clk 0:00:03]}  Ra1 {[%clk 0:00:03]} 70. Rb3 {[%clk 0:00:02]}  Ra4+ {[%clk 0:00:03]} 71. Kd5 {[%clk 0:00:02]}  Ra5+ {[%clk 0:00:03]} 72. Ke6 {[%clk 0:00:02]}  Ra6+ {[%clk 0:00:03]} 73. Kd7 {[%clk 0:00:02]}  Ra7+ {[%clk 0:00:04]} 74. Kc6 {[%clk 0:00:02]}  Ra6+ {[%clk 0:00:04]} 75. Kb5 {[%clk 0:00:02]}  Ra8 {[%clk 0:00:04]} 76. Rc3 {[%clk 0:00:02]}  Rb8+ {[%clk 0:00:04]} 77. Ka6 {[%clk 0:00:02]}  Ra8+ {[%clk 0:00:04]} 78. Kb7 {[%clk 0:00:02]}  Ra5 {[%clk 0:00:04]} 79. Rd3 {[%clk 0:00:02]}  Rb5+ {[%clk 0:00:03]} 80. Kc6 {[%clk 0:00:02]}  Ra5 {[%clk 0:00:04]} 81. Nc5 {[%clk 0:00:02]}  Ra2 {[%clk 0:00:02]} 82. Rb3 {[%clk 0:00:02]}  Rc2 {[%clk 0:00:02]} 83. Kd5 {[%clk 0:00:02]}  Rd2+ {[%clk 0:00:02]} 84. Ke6 {[%clk 0:00:02]}  Re2+ {[%clk 0:00:02]} 85. Ne4 {[%clk 0:00:03]}  Re1 {[%clk 0:00:02]} 86. Kf5 {[%clk 0:00:03]}  Ra1 {[%clk 0:00:01]} 87. Rb7+ {[%clk 0:00:03]}  Kg8 {[%clk 0:00:01]} 88. Kg6 {[%clk 0:00:02]}  Ra6+ {[%clk 0:00:02]} 89. Nf6+ {[%clk 0:00:03]}  Kf8 {[%clk 0:00:01]} 90. Rf7# {[%clk 0:00:03]} 1-0

[Event "December 5 Early 2023"]
[Site "https://www.chess.com"]
[Date "2023.12.05"]
[Round "5"]
[White "Skliarov, Viktor"]
[Black "Rakhmanov, Aleksandr"]
[Result "0-1"]
[Board "34"]
[TimeControl "180+1"]
[WhiteFideId "14106736"]
[BlackFideId "4173708"]
[WhiteElo "2629"]
[BlackElo "2899"]
[WhiteTeam "UKR"]
[BlackTeam "FID"]
[WhiteClock "0:00:04"]
[BlackClock "0:00:07"]

1. e4 {[%clk 0:03:00]}  c5 {[%clk 0:02:56]} 2. Nf3 {[%clk 0:03:00]}  Nf6 {[%clk 0:02:55]} 3. e5 {[%clk 0:03:00]}  Nd5 {[%clk 0:02:54]} 4. Nc3 {[%clk 0:03:00]}  Nxc3 {[%clk 0:02:54]} 5. dxc3 {[%clk 0:03:00]}  Nc6 {[%clk 0:02:54]} 6. Bc4 {[%clk 0:02:59]}  e6 {[%clk 0:02:53]} 7. Bf4 {[%clk 0:02:59]}  Qc7 {[%clk 0:02:51]} 8. Qd2 {[%clk 0:02:58]}  h6 {[%clk 0:02:51]} 9. h4 {[%clk 0:02:57]}  b6 {[%clk 0:02:51]} 10. O-O-O {[%clk 0:02:57]}  Rb8 {[%clk 0:02:51]} 11. Qe2 {[%clk 0:02:27]}  Na5 {[%clk 0:02:16]} 12. Bd3 {[%clk 0:02:06]}  c4 {[%clk 0:02:15]} 13. Be4 {[%clk 0:02:05]}  b5 {[%clk 0:02:09]} 14. Rd6 {[%clk 0:01:15]}  Nb7 {[%clk 0:02:00]} 15. Bxb7 {[%clk 0:00:52]}  Bxb7 {[%clk 0:01:54]} 16. Rhd1 {[%clk 0:00:52]}  Bxf3 {[%clk 0:01:36]} 17. Qxf3 {[%clk 0:00:49]}  Bxd6 {[%clk 0:01:37]} 18. Rxd6 {[%clk 0:00:38]}  b4 {[%clk 0:01:28]} 19. Qg3 {[%clk 0:00:22]}  Rg8 {[%clk 0:01:04]} 20. cxb4 {[%clk 0:00:20]}  Rxb4 {[%clk 0:01:03]} 21. Bd2 {[%clk 0:00:19]}  Rb5 {[%clk 0:00:49]} 22. Bxh6 {[%clk 0:00:18]}  c3 {[%clk 0:00:46]} 23. b3 {[%clk 0:00:17]}  Qc5 {[%clk 0:00:33]} 24. Bxg7 {[%clk 0:00:08]}  Qa3+ {[%clk 0:00:21]} 25. Kd1 {[%clk 0:00:08]}  Qb2 {[%clk 0:00:16]} 26. h5 {[%clk 0:00:05]}  Qb1+ {[%clk 0:00:16]} 27. Ke2 {[%clk 0:00:06]}  Qxc2+ {[%clk 0:00:17]} 28. Kf1 {[%clk 0:00:06]}  Qb1+ {[%clk 0:00:13]} 29. Ke2 {[%clk 0:00:06]}  c2 {[%clk 0:00:09]} 30. Rxd7 {[%clk 0:00:06]}  c1=Q {[%clk 0:00:05]} 31. Rd8+ {[%clk 0:00:04]}  Kxd8 {[%clk 0:00:06]} 32. Bf6+ {[%clk 0:00:04]}  Kc7 {[%clk 0:00:07]} 33. Qxg8 {[%clk 0:00:04]}  Qe4# {[%clk 0:00:07]} 0-1

[Event "December 5 Early 2023"]
[Site "https://www.chess.com"]
[Date "2023.12.05"]
[Round "5"]
[White "Guliev, Logman"]
[Black "Harutjunyan, Gevorg"]
[Result "0-1"]
[Board "36"]
[TimeControl "180+1"]
[WhiteFideId "13400061"]
[BlackFideId "13300873"]
[WhiteElo "2617"]
[BlackElo "2887"]
[WhiteTeam "AZE"]
[BlackTeam "ARM"]
[WhiteClock "0:00:00"]
[BlackClock "0:01:02"]

1. e4 {[%clk 0:03:00]}  c6 {[%clk 0:03:00]} 2. d4 {[%clk 0:02:57]}  d5 {[%clk 0:03:01]} 3. exd5 {[%clk 0:02:57]}  cxd5 {[%clk 0:03:01]} 4. c4 {[%clk 0:02:57]}  Nf6 {[%clk 0:03:01]} 5. Nc3 {[%clk 0:02:58]}  Nc6 {[%clk 0:03:01]} 6. Nf3 {[%clk 0:02:56]}  Be6 {[%clk 0:03:01]} 7. c5 {[%clk 0:02:52]}  g6 {[%clk 0:03:01]} 8. Bb5 {[%clk 0:02:50]}  Bg7 {[%clk 0:03:01]} 9. Ne5 {[%clk 0:02:50]}  Qc8 {[%clk 0:02:59]} 10. Qa4 {[%clk 0:02:46]}  Bd7 {[%clk 0:03:00]} 11. Nxd7 {[%clk 0:02:42]}  Qxd7 {[%clk 0:03:00]} 12. O-O {[%clk 0:02:39]}  O-O {[%clk 0:03:00]} 13. Re1 {[%clk 0:02:25]}  a6 {[%clk 0:02:55]} 14. Bxc6 {[%clk 0:02:20]}  bxc6 {[%clk 0:02:56]} 15. Bf4 {[%clk 0:02:16]}  Nh5 {[%clk 0:02:56]} 16. Bg5 {[%clk 0:01:55]}  f6 {[%clk 0:02:50]} 17. Be3 {[%clk 0:01:53]}  e5 {[%clk 0:02:48]} 18. dxe5 {[%clk 0:01:35]}  fxe5 {[%clk 0:02:47]} 19. Rad1 {[%clk 0:01:35]}  Qb7 {[%clk 0:02:30]} 20. Bc1 {[%clk 0:01:33]}  e4 {[%clk 0:02:27]} 21. Ne2 {[%clk 0:01:21]}  Rf7 {[%clk 0:01:41]} 22. Nd4 {[%clk 0:01:14]}  Bxd4 {[%clk 0:01:42]} 23. Qxd4 {[%clk 0:01:14]}  Ng7 {[%clk 0:01:41]} 24. b3 {[%clk 0:01:10]}  Re8 {[%clk 0:01:38]} 25. Bb2 {[%clk 0:01:10]}  h5 {[%clk 0:01:22]} 26. f3 {[%clk 0:01:09]}  Rfe7 {[%clk 0:01:12]} 27. Re3 {[%clk 0:01:09]}  Kh7 {[%clk 0:01:10]} 28. Rde1 {[%clk 0:01:09]}  Nf5 {[%clk 0:01:08]} 29. Qf6 {[%clk 0:00:38]}  Nxe3 {[%clk 0:01:08]} 30. Rxe3 {[%clk 0:00:39]}  exf3 {[%clk 0:01:07]} 31. Rxf3 {[%clk 0:00:34]}  Re1+ {[%clk 0:01:06]} 32. Rf1 {[%clk 0:00:00]}  Qe7 {[%clk 0:01:02]} 0-1

[Event "December 5 Early 2023"]
[Site "https://www.chess.com"]
[Date "2023.12.05"]
[Round "5"]
[White "Golubev, Mikhail"]
[Black "Xu, Yi"]
[Result "0-1"]
[Board "37"]
[TimeControl "180+1"]
[WhiteFideId "14100983"]
[BlackFideId "8605564"]
[WhiteElo "2611"]
[BlackElo "2857"]
[WhiteTeam "UKR"]
[BlackTeam "CHN"]
[WhiteClock "0:00:00"]
[BlackClock "0:00:28"]

1. e4 {[%clk 0:03:00]}  c5 {[%clk 0:02:57]} 2. Nf3 {[%clk 0:03:00]}  Nc6 {[%clk 0:02:56]} 3. Nc3 {[%clk 0:02:59]}  e6 {[%clk 0:02:55]} 4. d4 {[%clk 0:02:59]}  cxd4 {[%clk 0:02:55]} 5. Nxd4 {[%clk 0:03:00]}  Nf6 {[%clk 0:02:56]} 6. a3 {[%clk 0:02:57]}  d6 {[%clk 0:02:53]} 7. Bc4 {[%clk 0:02:55]}  a6 {[%clk 0:02:52]} 8. O-O {[%clk 0:02:54]}  Be7 {[%clk 0:02:52]} 9. Be3 {[%clk 0:02:51]}  O-O {[%clk 0:02:52]} 10. Ba2 {[%clk 0:02:50]}  Nxd4 {[%clk 0:02:49]} 11. Bxd4 {[%clk 0:02:50]}  b5 {[%clk 0:02:49]} 12. f4 {[%clk 0:02:43]}  Bb7 {[%clk 0:02:49]} 13. Qd3 {[%clk 0:02:42]}  Rc8 {[%clk 0:02:46]} 14. Rae1 {[%clk 0:02:23]}  Nd7 {[%clk 0:02:45]} 15. f5 {[%clk 0:02:05]}  e5 {[%clk 0:02:39]} 16. Bf2 {[%clk 0:02:03]}  Nc5 {[%clk 0:02:36]} 17. Bxc5 {[%clk 0:01:51]}  dxc5 {[%clk 0:02:27]} 18. Bd5 {[%clk 0:01:51]}  c4 {[%clk 0:02:21]} 19. Qf3 {[%clk 0:01:42]}  Bc5+ {[%clk 0:02:11]} 20. Kh1 {[%clk 0:01:42]}  Bxd5 {[%clk 0:02:11]} 21. Nxd5 {[%clk 0:01:41]}  f6 {[%clk 0:02:11]} 22. Rd1 {[%clk 0:01:35]}  Qe8 {[%clk 0:02:09]} 23. c3 {[%clk 0:01:29]}  Qf7 {[%clk 0:02:09]} 24. Rd2 {[%clk 0:01:20]}  h6 {[%clk 0:02:07]} 25. g4 {[%clk 0:01:19]}  Rc6 {[%clk 0:02:02]} 26. h4 {[%clk 0:01:17]}  Rd6 {[%clk 0:01:58]} 27. Rfd1 {[%clk 0:01:15]}  Rfd8 {[%clk 0:01:58]} 28. Rg2 {[%clk 0:01:11]}  Kf8 {[%clk 0:01:54]} 29. Rh2 {[%clk 0:00:49]}  Ke8 {[%clk 0:01:42]} 30. g5 {[%clk 0:00:49]}  hxg5 {[%clk 0:01:41]} 31. hxg5 {[%clk 0:00:49]}  fxg5 {[%clk 0:01:42]} 32. Qg3 {[%clk 0:00:47]}  Rxd5 {[%clk 0:01:34]} 33. Rh8+ {[%clk 0:00:35]}  Ke7 {[%clk 0:01:07]} 34. Rxd8 {[%clk 0:00:19]}  Rxd1+ {[%clk 0:01:06]} 35. Rxd1 {[%clk 0:00:14]}  Qh5+ {[%clk 0:01:07]} 36. Kg2 {[%clk 0:00:15]}  Qe2+ {[%clk 0:01:03]} 37. Kh3 {[%clk 0:00:14]}  Qxd1 {[%clk 0:00:43]} 38. Qxe5+ {[%clk 0:00:13]}  Kf7 {[%clk 0:00:42]} 39. Qe6+ {[%clk 0:00:10]}  Kf8 {[%clk 0:00:41]} 40. Qc8+ {[%clk 0:00:09]}  Ke7 {[%clk 0:00:32]} 41. Qxc5+ {[%clk 0:00:09]}  Kf6 {[%clk 0:00:30]} 42. Qf8+ {[%clk 0:00:02]}  Ke5 {[%clk 0:00:30]} 43. Qe7+ {[%clk 0:00:02]}  Kf4 {[%clk 0:00:29]} 44. Qc7+ {[%clk 0:00:02]}  Kxe4 {[%clk 0:00:28]} 45. Qe7+ {[%clk 0:00:02]}  Kxf5 {[%clk 0:00:28]} 46. Qf7+ {[%clk 0:00:01]}  Ke4 {[%clk 0:00:28]} 47. Qe7+ {[%clk 0:00:00]}  Kd3 {[%clk 0:00:28]} 0-1

[Event "December 5 Early 2023"]
[Site "https://www.chess.com"]
[Date "2023.12.05"]
[Round "5"]
[White "Navarrete Mendez, Gonzalo Alberto"]
[Black "Klukin, Kirill"]
[Result "1/2-1/2"]
[Board "40"]
[TimeControl "180+1"]
[WhiteFideId "5106850"]
[BlackFideId "24199273"]
[WhiteElo "2601"]
[BlackElo "2836"]
[WhiteTeam "MEX"]
[BlackTeam "RUS"]
[WhiteClock "0:00:05"]
[BlackClock "0:00:06"]

1. e4 {[%clk 0:02:40]}  c5 {[%clk 0:03:00]} 2. Nf3 {[%clk 0:02:38]}  g6 {[%clk 0:03:00]} 3. Nc3 {[%clk 0:02:38]}  Bg7 {[%clk 0:03:00]} 4. Bc4 {[%clk 0:02:38]}  Nc6 {[%clk 0:03:00]} 5. O-O {[%clk 0:02:38]}  e6 {[%clk 0:02:59]} 6. d4 {[%clk 0:02:38]}  cxd4 {[%clk 0:02:31]} 7. Nb5 {[%clk 0:02:36]}  d6 {[%clk 0:02:19]} 8. Bg5 {[%clk 0:02:35]}  Bf6 {[%clk 0:02:10]} 9. Bf4 {[%clk 0:02:19]}  e5 {[%clk 0:02:04]} 10. Bd2 {[%clk 0:02:11]}  a6 {[%clk 0:02:03]} 11. Na3 {[%clk 0:02:11]}  b5 {[%clk 0:02:03]} 12. Bd5 {[%clk 0:02:11]}  Nge7 {[%clk 0:02:04]} 13. c3 {[%clk 0:01:57]}  dxc3 {[%clk 0:01:53]} 14. Bxc3 {[%clk 0:01:54]}  Nxd5 {[%clk 0:01:49]} 15. Qxd5 {[%clk 0:01:39]}  Bb7 {[%clk 0:01:41]} 16. Nc2 {[%clk 0:01:31]}  O-O {[%clk 0:01:38]} 17. Rad1 {[%clk 0:01:25]}  Be7 {[%clk 0:01:13]} 18. Qd2 {[%clk 0:01:22]}  a5 {[%clk 0:01:04]} 19. b3 {[%clk 0:01:16]}  b4 {[%clk 0:01:03]} 20. Ba1 {[%clk 0:01:16]}  a4 {[%clk 0:00:44]} 21. Nxb4 {[%clk 0:01:05]}  axb3 {[%clk 0:00:42]} 22. axb3 {[%clk 0:01:03]}  Nxb4 {[%clk 0:00:40]} 23. Qxb4 {[%clk 0:01:04]}  Qc7 {[%clk 0:00:33]} 24. Rc1 {[%clk 0:00:56]}  Qd7 {[%clk 0:00:34]} 25. Rfd1 {[%clk 0:00:45]}  Rfc8 {[%clk 0:00:34]} 26. Rxc8+ {[%clk 0:00:38]}  Rxc8 {[%clk 0:00:22]} 27. Qe1 {[%clk 0:00:23]}  Qe6 {[%clk 0:00:20]} 28. Qe3 {[%clk 0:00:20]}  Qg4 {[%clk 0:00:10]} 29. Re1 {[%clk 0:00:10]}  h5 {[%clk 0:00:09]} 30. h3 {[%clk 0:00:10]}  Qe6 {[%clk 0:00:10]} 31. Qh6 {[%clk 0:00:03]}  Bf8 {[%clk 0:00:10]} 32. Qe3 {[%clk 0:00:03]}  Bg7 {[%clk 0:00:10]} 33. Ng5 {[%clk 0:00:03]}  Qe7 {[%clk 0:00:11]} 34. h4 {[%clk 0:00:02]}  Bc6 {[%clk 0:00:08]} 35. Qb6 {[%clk 0:00:02]}  Qb7 {[%clk 0:00:08]} 36. Qe3 {[%clk 0:00:02]}  Rb8 {[%clk 0:00:08]} 37. f3 {[%clk 0:00:03]}  Qxb3 {[%clk 0:00:08]} 38. Qc1 {[%clk 0:00:03]}  Qb7 {[%clk 0:00:07]} 39. Rd1 {[%clk 0:00:02]}  d5 {[%clk 0:00:04]} 40. exd5 {[%clk 0:00:02]}  Bxd5 {[%clk 0:00:05]} 41. Kh2 {[%clk 0:00:02]}  Re8 {[%clk 0:00:05]} 42. Qe3 {[%clk 0:00:02]}  e4 {[%clk 0:00:04]} 43. Bxg7 {[%clk 0:00:01]}  Kxg7 {[%clk 0:00:03]} 44. fxe4 {[%clk 0:00:02]}  Bxe4 {[%clk 0:00:03]} 45. Qd4+ {[%clk 0:00:02]}  Kg8 {[%clk 0:00:04]} 46. Rf1 {[%clk 0:00:02]}  Bf5 {[%clk 0:00:03]} 47. Rf4 {[%clk 0:00:01]}  Qc7 {[%clk 0:00:04]} 48. Qf2 {[%clk 0:00:01]}  Qe7 {[%clk 0:00:04]} 49. Qg3 {[%clk 0:00:02]}  Bg4 {[%clk 0:00:04]} 50. Nf3 {[%clk 0:00:02]}  Qd6 {[%clk 0:00:03]} 51. Rxg4 {[%clk 0:00:02]}  Qxg3+ {[%clk 0:00:03]} 52. Rxg3 {[%clk 0:00:03]}  Re4 {[%clk 0:00:04]} 53. Rh3 {[%clk 0:00:02]}  Kg7 {[%clk 0:00:04]} 54. Rg3 {[%clk 0:00:02]}  Rf4 {[%clk 0:00:04]} 55. Kh3 {[%clk 0:00:03]}  Kh6 {[%clk 0:00:04]} 56. Ng5 {[%clk 0:00:03]}  Kg7 {[%clk 0:00:05]} 57. Nf3 {[%clk 0:00:03]}  f6 {[%clk 0:00:04]} 58. Nd2 {[%clk 0:00:03]}  Rd4 {[%clk 0:00:04]} 59. Nf3 {[%clk 0:00:03]}  Rf4 {[%clk 0:00:05]} 60. Kh2 {[%clk 0:00:04]}  Kh6 {[%clk 0:00:05]} 61. Rh3 {[%clk 0:00:04]}  g5 {[%clk 0:00:05]} 62. hxg5+ {[%clk 0:00:05]}  fxg5 {[%clk 0:00:06]} 63. Rg3 {[%clk 0:00:05]}  h4 {[%clk 0:00:04]} 64. Rxg5 {[%clk 0:00:04]}  Rxf3 {[%clk 0:00:05]} 65. gxf3 {[%clk 0:00:04]}  Kxg5 {[%clk 0:00:05]} 66. Kh3 {[%clk 0:00:05]}  Kf4 {[%clk 0:00:05]} 67. Kxh4 {[%clk 0:00:05]}  Kxf3 {[%clk 0:00:06]} 1/2-1/2